[Event "January 9 Early 2024"]
[Site "https://www.chess.com"]
[Date "2024.01.11"]
[Round "11"]
[White "Janaszak, Dawid"]
[Black "Yuan, Qingyu"]
[Result "1-0"]
[Board "156"]
[TimeControl "180+1"]
[WhiteFideId "1119206"]
[BlackFideId "8609772"]
[WhiteElo "2637"]
[BlackElo "2744"]
[WhiteTeam "POL"]
[BlackTeam "CHN"]
[WhiteClock "0:00:27"]
[BlackClock "0:00:02"]

1. d4 {[%clk 0:03:00]}  d5 {[%clk 0:03:00]} 2. Nf3 {[%clk 0:03:00]}  Nf6 {[%clk 0:03:00]} 3. e3 {[%clk 0:02:59]}  e6 {[%clk 0:02:58]} 4. c4 {[%clk 0:03:00]}  a6 {[%clk 0:02:55]} 5. Nc3 {[%clk 0:03:00]}  Nbd7 {[%clk 0:02:51]} 6. a4 {[%clk 0:02:56]}  b6 {[%clk 0:02:49]} 7. Qc2 {[%clk 0:02:54]}  Bb7 {[%clk 0:02:48]} 8. Bd3 {[%clk 0:02:53]}  c5 {[%clk 0:02:39]} 9. cxd5 {[%clk 0:02:49]}  exd5 {[%clk 0:02:29]} 10. O-O {[%clk 0:02:48]}  c4 {[%clk 0:02:29]} 11. Be2 {[%clk 0:02:47]}  Bd6 {[%clk 0:02:23]} 12. b3 {[%clk 0:02:46]}  cxb3 {[%clk 0:02:17]} 13. Qxb3 {[%clk 0:02:47]}  O-O {[%clk 0:02:17]} 14. Ba3 {[%clk 0:02:47]}  Qe7 {[%clk 0:02:17]} 15. Bxd6 {[%clk 0:02:47]}  Qxd6 {[%clk 0:02:18]} 16. Qa3 {[%clk 0:02:46]}  Qxa3 {[%clk 0:02:14]} 17. Rxa3 {[%clk 0:02:47]}  Rfc8 {[%clk 0:02:15]} 18. Rb1 {[%clk 0:02:44]}  Rc7 {[%clk 0:02:14]} 19. Bd3 {[%clk 0:02:38]}  Rac8 {[%clk 0:02:14]} 20. Ne2 {[%clk 0:02:38]}  g6 {[%clk 0:02:06]} 21. h3 {[%clk 0:02:37]}  Ne8 {[%clk 0:02:02]} 22. Rab3 {[%clk 0:02:33]}  f6 {[%clk 0:01:56]} 23. Kh2 {[%clk 0:02:23]}  Nd6 {[%clk 0:01:56]} 24. Nf4 {[%clk 0:02:19]}  Kf7 {[%clk 0:01:52]} 25. h4 {[%clk 0:02:06]}  Nc4 {[%clk 0:01:45]} 26. g4 {[%clk 0:01:51]}  Na5 {[%clk 0:01:39]} 27. R3b2 {[%clk 0:01:50]}  Nc4 {[%clk 0:01:39]} 28. Rb3 {[%clk 0:01:51]}  Bc6 {[%clk 0:01:28]} 29. Ra1 {[%clk 0:01:42]}  b5 {[%clk 0:01:08]} 30. axb5 {[%clk 0:01:42]}  axb5 {[%clk 0:01:09]} 31. h5 {[%clk 0:01:35]}  g5 {[%clk 0:00:59]} 32. Ne2 {[%clk 0:01:33]}  h6 {[%clk 0:00:59]} 33. Nc3 {[%clk 0:01:28]}  Rb7 {[%clk 0:00:59]} 34. Bf5 {[%clk 0:01:22]}  Ke7 {[%clk 0:00:54]} 35. Ra6 {[%clk 0:01:13]}  Rcc7 {[%clk 0:00:45]} 36. Ra8 {[%clk 0:01:06]}  Nb8 {[%clk 0:00:40]} 37. Ra1 {[%clk 0:00:56]}  Nd7 {[%clk 0:00:35]} 38. Ra8 {[%clk 0:00:55]}  Nb8 {[%clk 0:00:35]} 39. Ra1 {[%clk 0:00:55]}  Ra7 {[%clk 0:00:30]} 40. Rab1 {[%clk 0:00:55]}  Nd6 {[%clk 0:00:28]} 41. Bd3 {[%clk 0:00:53]}  Nd7 {[%clk 0:00:14]} 42. Kg3 {[%clk 0:00:48]}  Ne4+ {[%clk 0:00:07]} 43. Bxe4 {[%clk 0:00:43]}  dxe4 {[%clk 0:00:07]} 44. Nd2 {[%clk 0:00:44]}  Nb6 {[%clk 0:00:05]} 45. Nxb5 {[%clk 0:00:41]}  Bxb5 {[%clk 0:00:05]} 46. Rxb5 {[%clk 0:00:41]}  Nd7 {[%clk 0:00:03]} 47. Nxe4 {[%clk 0:00:40]}  Ra2 {[%clk 0:00:03]} 48. R1b2 {[%clk 0:00:40]}  Ra1 {[%clk 0:00:03]} 49. Rb1 {[%clk 0:00:39]}  Ra2 {[%clk 0:00:03]} 50. R5b2 {[%clk 0:00:39]}  Ra3 {[%clk 0:00:03]} 51. Rb7 {[%clk 0:00:39]}  Rc2 {[%clk 0:00:02]} 52. Nc5 {[%clk 0:00:36]}  Rxc5 {[%clk 0:00:02]} 53. dxc5 {[%clk 0:00:35]}  Ke6 {[%clk 0:00:03]} 54. c6 {[%clk 0:00:34]}  Ne5 {[%clk 0:00:03]} 55. Rc1 {[%clk 0:00:32]}  Ra4 {[%clk 0:00:03]} 56. f3 {[%clk 0:00:28]}  Ra2 {[%clk 0:00:01]} 57. c7 {[%clk 0:00:27]}  Nd3 {[%clk 0:00:01]} 58. c8=Q+ {[%clk 0:00:27]}  Ke5 {[%clk 0:00:02]} 59. Qf5+ {[%clk 0:00:27]}  Kd6 {[%clk 0:00:02]} 60. Rd7# {[%clk 0:00:27]} 1-0

[Event "January 9 Early 2024"]
[Site "https://www.chess.com"]
[Date "2024.01.11"]
[Round "11"]
[White "Iturrizaga Bonelli, Eduardo"]
[Black "Radjabov, Teimour"]
[Result "1-0"]
[Board "158"]
[TimeControl "180+1"]
[WhiteFideId "3901211"]
[BlackFideId "13400924"]
[WhiteElo "3039"]
[BlackElo "3035"]
[WhiteTeam "ESP"]
[BlackTeam "AZE"]
[WhiteClock "0:00:10"]
[BlackClock "0:00:02"]

1. c4 {[%clk 0:03:00]}  Nf6 {[%clk 0:02:58]} 2. g3 {[%clk 0:02:59]}  g6 {[%clk 0:02:58]} 3. Bg2 {[%clk 0:02:59]}  Bg7 {[%clk 0:02:59]} 4. Nc3 {[%clk 0:02:59]}  O-O {[%clk 0:02:57]} 5. d4 {[%clk 0:03:00]}  c6 {[%clk 0:02:54]} 6. e4 {[%clk 0:02:59]}  d6 {[%clk 0:02:54]} 7. Nf3 {[%clk 0:02:57]}  e5 {[%clk 0:02:51]} 8. O-O {[%clk 0:02:56]}  Na6 {[%clk 0:02:39]} 9. Qc2 {[%clk 0:02:34]}  Re8 {[%clk 0:02:30]} 10. Rd1 {[%clk 0:02:30]}  Bd7 {[%clk 0:01:40]} 11. h3 {[%clk 0:02:26]}  exd4 {[%clk 0:01:19]} 12. Nxd4 {[%clk 0:02:27]}  Qe7 {[%clk 0:01:19]} 13. Bf4 {[%clk 0:02:27]}  Nh5 {[%clk 0:01:12]} 14. Be3 {[%clk 0:02:24]}  Nf6 {[%clk 0:01:12]} 15. Bf4 {[%clk 0:02:22]}  Nh5 {[%clk 0:01:12]} 16. Be3 {[%clk 0:02:22]}  Nf6 {[%clk 0:01:12]} 17. Rd2 {[%clk 0:02:04]}  Nc5 {[%clk 0:01:11]} 18. f3 {[%clk 0:02:03]}  Rac8 {[%clk 0:00:49]} 19. Bf2 {[%clk 0:01:49]}  Bh6 {[%clk 0:00:47]} 20. Re2 {[%clk 0:01:43]}  Qf8 {[%clk 0:00:45]} 21. Rd1 {[%clk 0:01:37]}  b6 {[%clk 0:00:44]} 22. Ree1 {[%clk 0:01:33]}  Bg7 {[%clk 0:00:41]} 23. b3 {[%clk 0:01:28]}  h5 {[%clk 0:00:41]} 24. Qd2 {[%clk 0:01:24]}  Rcd8 {[%clk 0:00:40]} 25. Be3 {[%clk 0:01:21]}  Ne6 {[%clk 0:00:39]} 26. Bf2 {[%clk 0:01:15]}  Nc5 {[%clk 0:00:33]} 27. Be3 {[%clk 0:01:15]}  Ne6 {[%clk 0:00:33]} 28. h4 {[%clk 0:01:16]}  Nxd4 {[%clk 0:00:27]} 29. Bxd4 {[%clk 0:01:15]}  Be6 {[%clk 0:00:28]} 30. Qc2 {[%clk 0:01:11]}  Qe7 {[%clk 0:00:27]} 31. Ne2 {[%clk 0:01:08]}  Qf8 {[%clk 0:00:27]} 32. Nf4 {[%clk 0:01:07]}  Bc8 {[%clk 0:00:26]} 33. Qb2 {[%clk 0:01:06]}  Nh7 {[%clk 0:00:23]} 34. Bxg7 {[%clk 0:01:06]}  Qxg7 {[%clk 0:00:23]} 35. Qxg7+ {[%clk 0:00:58]}  Kxg7 {[%clk 0:00:24]} 36. Rd2 {[%clk 0:00:59]}  Kf8 {[%clk 0:00:21]} 37. Red1 {[%clk 0:00:57]}  Ke7 {[%clk 0:00:21]} 38. Kf2 {[%clk 0:00:58]}  Nf6 {[%clk 0:00:20]} 39. Ne2 {[%clk 0:00:55]}  Bb7 {[%clk 0:00:19]} 40. Nc3 {[%clk 0:00:47]}  Ba8 {[%clk 0:00:19]} 41. b4 {[%clk 0:00:47]}  Bb7 {[%clk 0:00:19]} 42. b5 {[%clk 0:00:44]}  c5 {[%clk 0:00:18]} 43. Bh3 {[%clk 0:00:43]}  Ba8 {[%clk 0:00:17]} 44. a4 {[%clk 0:00:29]}  Bb7 {[%clk 0:00:14]} 45. a5 {[%clk 0:00:29]}  bxa5 {[%clk 0:00:13]} 46. Ra1 {[%clk 0:00:29]}  Ra8 {[%clk 0:00:13]} 47. Rxa5 {[%clk 0:00:20]}  a6 {[%clk 0:00:14]} 48. b6 {[%clk 0:00:14]}  Reb8 {[%clk 0:00:13]} 49. e5 {[%clk 0:00:12]}  Ne8 {[%clk 0:00:03]} 50. exd6+ {[%clk 0:00:12]}  Nxd6 {[%clk 0:00:03]} 51. Rxc5 {[%clk 0:00:12]}  f5 {[%clk 0:00:03]} 52. Rc7+ {[%clk 0:00:11]}  Ke6 {[%clk 0:00:03]} 53. Bf1 {[%clk 0:00:09]}  Bc8 {[%clk 0:00:02]} 54. c5 {[%clk 0:00:09]}  Ne8 {[%clk 0:00:02]} 55. Bc4+ {[%clk 0:00:10]} 1-0

[Event "January 9 Early 2024"]
[Site "https://www.chess.com"]
[Date "2024.01.11"]
[Round "11"]
[White "Klukin, Kirill"]
[Black "Wojtaszek, Radoslaw"]
[Result "1-0"]
[Board "161"]
[TimeControl "180+1"]
[WhiteFideId "24199273"]
[BlackFideId "1118358"]
[WhiteElo "2842"]
[BlackElo "2909"]
[WhiteTeam "RUS"]
[BlackTeam "POL"]
[WhiteClock "0:00:04"]
[BlackClock "0:00:06"]

1. d4 {[%clk 0:03:00]}  Nf6 {[%clk 0:02:59]} 2. c4 {[%clk 0:03:01]}  e6 {[%clk 0:02:58]} 3. Nc3 {[%clk 0:03:01]}  Bb4 {[%clk 0:02:57]} 4. e3 {[%clk 0:03:01]}  O-O {[%clk 0:02:55]} 5. Bd2 {[%clk 0:03:00]}  c5 {[%clk 0:02:54]} 6. Nf3 {[%clk 0:02:59]}  Bxc3 {[%clk 0:02:37]} 7. Bxc3 {[%clk 0:03:00]}  Ne4 {[%clk 0:02:37]} 8. Rc1 {[%clk 0:03:00]}  d6 {[%clk 0:02:32]} 9. Qc2 {[%clk 0:02:50]}  Nxc3 {[%clk 0:02:31]} 10. Qxc3 {[%clk 0:02:51]}  Nc6 {[%clk 0:02:31]} 11. Be2 {[%clk 0:02:51]}  Qe7 {[%clk 0:02:31]} 12. O-O {[%clk 0:02:51]}  e5 {[%clk 0:02:31]} 13. dxe5 {[%clk 0:02:50]}  dxe5 {[%clk 0:02:30]} 14. Rfd1 {[%clk 0:02:51]}  e4 {[%clk 0:02:26]} 15. Nd2 {[%clk 0:02:43]}  f5 {[%clk 0:02:26]} 16. a3 {[%clk 0:02:39]}  a5 {[%clk 0:02:25]} 17. Nb1 {[%clk 0:02:34]}  Be6 {[%clk 0:02:22]} 18. Qe1 {[%clk 0:02:26]}  f4 {[%clk 0:02:09]} 19. Bf1 {[%clk 0:02:23]}  f3 {[%clk 0:01:41]} 20. g3 {[%clk 0:02:22]}  Ne5 {[%clk 0:01:31]} 21. Nc3 {[%clk 0:02:16]}  Bf5 {[%clk 0:01:31]} 22. Rd5 {[%clk 0:01:48]}  Ra6 {[%clk 0:01:31]} 23. Rcd1 {[%clk 0:01:36]}  Rh6 {[%clk 0:01:29]} 24. Qd2 {[%clk 0:01:25]}  Ng4 {[%clk 0:01:25]} 25. h3 {[%clk 0:00:47]}  Ne5 {[%clk 0:01:25]} 26. Rd8 {[%clk 0:00:41]}  Nd3 {[%clk 0:00:53]} 27. Rxf8+ {[%clk 0:00:36]}  Qxf8 {[%clk 0:00:54]} 28. Nxe4 {[%clk 0:00:29]}  Bxe4 {[%clk 0:00:53]} 29. Bxd3 {[%clk 0:00:29]}  Rd6 {[%clk 0:00:54]} 30. Bxe4 {[%clk 0:00:23]}  Rxd2 {[%clk 0:00:48]} 31. Rxd2 {[%clk 0:00:24]}  b6 {[%clk 0:00:47]} 32. Rd7 {[%clk 0:00:20]}  g6 {[%clk 0:00:23]} 33. Bd5+ {[%clk 0:00:20]}  Kh8 {[%clk 0:00:24]} 34. Rf7 {[%clk 0:00:21]}  Qd6 {[%clk 0:00:23]} 35. Rxf3 {[%clk 0:00:20]}  Qe5 {[%clk 0:00:24]} 36. b3 {[%clk 0:00:13]}  Qb2 {[%clk 0:00:19]} 37. e4 {[%clk 0:00:09]}  Qxa3 {[%clk 0:00:18]} 38. Bc6 {[%clk 0:00:09]}  Kg7 {[%clk 0:00:14]} 39. Kg2 {[%clk 0:00:09]}  Qa1 {[%clk 0:00:12]} 40. Re3 {[%clk 0:00:08]}  Qe5 {[%clk 0:00:11]} 41. Rf3 {[%clk 0:00:08]}  h5 {[%clk 0:00:11]} 42. h4 {[%clk 0:00:08]}  Qd4 {[%clk 0:00:09]} 43. Re3 {[%clk 0:00:07]}  Qe5 {[%clk 0:00:09]} 44. Ba4 {[%clk 0:00:07]}  Kf8 {[%clk 0:00:06]} 45. Rf3+ {[%clk 0:00:07]}  Ke7 {[%clk 0:00:06]} 46. Re3 {[%clk 0:00:07]}  Qd4 {[%clk 0:00:06]} 47. Bc6 {[%clk 0:00:06]}  Qe5 {[%clk 0:00:06]} 48. Ba4 {[%clk 0:00:06]}  Kd6 {[%clk 0:00:06]} 49. Rd3+ {[%clk 0:00:06]}  Ke7 {[%clk 0:00:06]} 50. Kf3 {[%clk 0:00:05]}  Qf6+ {[%clk 0:00:06]} 51. Ke3 {[%clk 0:00:05]}  Qb2 {[%clk 0:00:06]} 52. Kf3 {[%clk 0:00:04]}  Qf6+ {[%clk 0:00:06]} 53. Kg2 {[%clk 0:00:04]} 1-0

[Event "January 9 Early 2024"]
[Site "https://www.chess.com"]
[Date "2024.01.11"]
[Round "11"]
[White "Goryachkina, Aleksandra"]
[Black "Aashman Gupta"]
[Result "0-1"]
[Board "162"]
[TimeControl "180+1"]
[WhiteFideId "4147103"]
[BlackFideId "45022500"]
[WhiteElo "2642"]
[BlackElo "2504"]
[WhiteTeam "FID"]
[BlackTeam "IND"]
[WhiteClock "0:00:01"]
[BlackClock "0:00:03"]

1. e4 {[%clk 0:03:00]}  e5 {[%clk 0:02:56]} 2. Nf3 {[%clk 0:03:00]}  Nc6 {[%clk 0:02:57]} 3. Bc4 {[%clk 0:03:00]}  Nf6 {[%clk 0:02:57]} 4. d3 {[%clk 0:03:00]}  Be7 {[%clk 0:02:57]} 5. O-O {[%clk 0:03:00]}  O-O {[%clk 0:02:58]} 6. Nc3 {[%clk 0:02:59]}  d6 {[%clk 0:02:58]} 7. a3 {[%clk 0:02:58]}  Be6 {[%clk 0:02:53]} 8. Nd5 {[%clk 0:02:58]}  Bxd5 {[%clk 0:02:53]} 9. exd5 {[%clk 0:02:59]}  Nb8 {[%clk 0:02:53]} 10. Re1 {[%clk 0:02:53]}  Nbd7 {[%clk 0:02:53]} 11. d4 {[%clk 0:02:49]}  e4 {[%clk 0:02:35]} 12. Nd2 {[%clk 0:02:49]}  Nb6 {[%clk 0:02:35]} 13. Bb3 {[%clk 0:02:48]}  Nfxd5 {[%clk 0:02:04]} 14. Nxe4 {[%clk 0:02:46]}  Nf6 {[%clk 0:02:05]} 15. c3 {[%clk 0:02:39]}  Nxe4 {[%clk 0:02:00]} 16. Rxe4 {[%clk 0:02:39]}  d5 {[%clk 0:02:00]} 17. Re5 {[%clk 0:02:28]}  Bf6 {[%clk 0:01:54]} 18. Rh5 {[%clk 0:02:27]}  c6 {[%clk 0:01:48]} 19. Bc2 {[%clk 0:02:16]}  g6 {[%clk 0:01:47]} 20. Qg4 {[%clk 0:02:13]}  Bg7 {[%clk 0:01:43]} 21. Rh3 {[%clk 0:02:11]}  Re8 {[%clk 0:01:35]} 22. Bg5 {[%clk 0:02:09]}  Qd7 {[%clk 0:01:32]} 23. Qh4 {[%clk 0:02:05]}  h5 {[%clk 0:01:27]} 24. Rg3 {[%clk 0:02:01]}  Qe6 {[%clk 0:01:02]} 25. h3 {[%clk 0:01:56]}  Nd7 {[%clk 0:01:02]} 26. Re3 {[%clk 0:01:48]}  Qd6 {[%clk 0:01:02]} 27. Be7 {[%clk 0:01:45]}  Qc7 {[%clk 0:01:00]} 28. Rae1 {[%clk 0:01:42]}  Nf8 {[%clk 0:00:55]} 29. Bf6 {[%clk 0:01:14]}  Rxe3 {[%clk 0:00:26]} 30. Rxe3 {[%clk 0:01:14]}  Qd6 {[%clk 0:00:26]} 31. Be7 {[%clk 0:00:50]}  Qd7 {[%clk 0:00:23]} 32. a4 {[%clk 0:00:39]}  Re8 {[%clk 0:00:23]} 33. a5 {[%clk 0:00:37]}  a6 {[%clk 0:00:09]} 34. b3 {[%clk 0:00:35]}  Ne6 {[%clk 0:00:08]} 35. Ba3 {[%clk 0:00:34]}  Bh6 {[%clk 0:00:05]} 36. Re5 {[%clk 0:00:18]}  Nf4 {[%clk 0:00:05]} 37. Qf6 {[%clk 0:00:07]}  Rxe5 {[%clk 0:00:04]} 38. Qxe5 {[%clk 0:00:06]}  Qe6 {[%clk 0:00:02]} 39. g3 {[%clk 0:00:02]}  Ne2+ {[%clk 0:00:01]} 40. Kf1 {[%clk 0:00:01]}  Qxe5 {[%clk 0:00:02]} 41. dxe5 {[%clk 0:00:02]}  Nxc3 {[%clk 0:00:03]} 42. Bc5 {[%clk 0:00:01]}  Ne4 {[%clk 0:00:03]} 43. f3 {[%clk 0:00:01]}  Nxc5 {[%clk 0:00:03]} 0-1

[Event "January 9 Early 2024"]
[Site "https://www.chess.com"]
[Date "2024.01.11"]
[Round "11"]
[White "Kornyukov, Alexey"]
[Black "Zhuk, Valeriy"]
[Result "0-1"]
[Board "163"]
[TimeControl "180+1"]
[WhiteFideId "4150457"]
[BlackFideId "24151254"]
[WhiteElo "2264"]
[BlackElo "2417"]
[WhiteTeam "RUS"]
[BlackTeam "RUS"]
[WhiteClock "0:00:06"]
[BlackClock "0:00:30"]

1. d4 {[%clk 0:03:00]}  d5 {[%clk 0:02:59]} 2. Nc3 {[%clk 0:03:00]}  Nf6 {[%clk 0:02:55]} 3. Bg5 {[%clk 0:02:59]}  c5 {[%clk 0:02:45]} 4. dxc5 {[%clk 0:02:53]}  d4 {[%clk 0:02:41]} 5. Bxf6 {[%clk 0:02:53]}  gxf6 {[%clk 0:02:38]} 6. Ne4 {[%clk 0:02:51]}  Bf5 {[%clk 0:02:31]} 7. Ng3 {[%clk 0:02:47]}  Bg6 {[%clk 0:02:30]} 8. Nf3 {[%clk 0:02:46]}  e5 {[%clk 0:02:25]} 9. e3 {[%clk 0:02:36]}  dxe3 {[%clk 0:02:16]} 10. Qxd8+ {[%clk 0:02:34]}  Kxd8 {[%clk 0:02:17]} 11. O-O-O+ {[%clk 0:02:34]}  Kc7 {[%clk 0:02:17]} 12. fxe3 {[%clk 0:02:31]}  Bxc5 {[%clk 0:02:17]} 13. e4 {[%clk 0:02:28]}  h5 {[%clk 0:02:16]} 14. Nh4 {[%clk 0:02:18]}  Nc6 {[%clk 0:02:08]} 15. Nxg6 {[%clk 0:02:12]}  fxg6 {[%clk 0:02:07]} 16. c3 {[%clk 0:02:11]}  h4 {[%clk 0:02:03]} 17. Ne2 {[%clk 0:02:10]}  Rad8 {[%clk 0:02:02]} 18. Rd5 {[%clk 0:01:43]}  Be3+ {[%clk 0:01:54]} 19. Kc2 {[%clk 0:01:42]}  Ne7 {[%clk 0:01:55]} 20. Rd3 {[%clk 0:01:07]}  Rxd3 {[%clk 0:01:38]} 21. Kxd3 {[%clk 0:01:06]}  Bg5 {[%clk 0:01:38]} 22. Ng1 {[%clk 0:00:56]}  Rd8+ {[%clk 0:01:38]} 23. Kc4 {[%clk 0:00:55]}  Rd2 {[%clk 0:01:26]} 24. Kb3 {[%clk 0:00:54]}  Nc6 {[%clk 0:01:19]} 25. Nf3 {[%clk 0:00:52]}  Rd1 {[%clk 0:01:01]} 26. Nxg5 {[%clk 0:00:48]}  fxg5 {[%clk 0:01:01]} 27. g3 {[%clk 0:00:44]}  h3 {[%clk 0:00:44]} 28. Kc2 {[%clk 0:00:34]}  Ra1 {[%clk 0:00:44]} 29. Bg2 {[%clk 0:00:21]}  Rxh1 {[%clk 0:00:43]} 30. Bxh1 {[%clk 0:00:20]}  g4 {[%clk 0:00:43]} 31. Kd3 {[%clk 0:00:20]}  Nd8 {[%clk 0:00:43]} 32. Kc4 {[%clk 0:00:20]}  Kd6 {[%clk 0:00:43]} 33. b4 {[%clk 0:00:19]}  Ne6 {[%clk 0:00:43]} 34. a4 {[%clk 0:00:17]}  Ng5 {[%clk 0:00:43]} 35. Kd3 {[%clk 0:00:17]}  Kc6 {[%clk 0:00:38]} 36. c4 {[%clk 0:00:17]}  a5 {[%clk 0:00:38]} 37. bxa5 {[%clk 0:00:13]}  Kc5 {[%clk 0:00:37]} 38. Kc3 {[%clk 0:00:13]}  Nf3 {[%clk 0:00:33]} 39. Bxf3 {[%clk 0:00:11]}  gxf3 {[%clk 0:00:33]} 40. Kd2 {[%clk 0:00:11]}  Kxc4 {[%clk 0:00:33]} 41. Ke3 {[%clk 0:00:12]}  Kb4 {[%clk 0:00:33]} 42. Kxf3 {[%clk 0:00:12]}  Kxa5 {[%clk 0:00:33]} 43. Kg4 {[%clk 0:00:12]}  Kxa4 {[%clk 0:00:34]} 44. Kg5 {[%clk 0:00:12]}  b5 {[%clk 0:00:35]} 45. Kxg6 {[%clk 0:00:12]}  b4 {[%clk 0:00:36]} 46. Kf5 {[%clk 0:00:12]}  b3 {[%clk 0:00:37]} 47. g4 {[%clk 0:00:12]}  b2 {[%clk 0:00:37]} 48. g5 {[%clk 0:00:12]}  b1=Q {[%clk 0:00:38]} 49. g6 {[%clk 0:00:12]}  Qb8 {[%clk 0:00:36]} 50. Kf6 {[%clk 0:00:09]}  Qg8 {[%clk 0:00:34]} 51. Kf5 {[%clk 0:00:07]}  Qg7 {[%clk 0:00:33]} 52. Kg5 {[%clk 0:00:07]}  Kb5 {[%clk 0:00:34]} 53. Kh4 {[%clk 0:00:07]}  Qxg6 {[%clk 0:00:33]} 54. Kxh3 {[%clk 0:00:08]}  Qxe4 {[%clk 0:00:32]} 55. Kg3 {[%clk 0:00:07]}  Qg6+ {[%clk 0:00:32]} 56. Kf3 {[%clk 0:00:07]}  Kc4 {[%clk 0:00:32]} 57. Ke3 {[%clk 0:00:07]}  Kd5 {[%clk 0:00:29]} 58. h4 {[%clk 0:00:06]}  Qg3+ {[%clk 0:00:29]} 59. Kd2 {[%clk 0:00:06]}  Kd4 {[%clk 0:00:29]} 60. h5 {[%clk 0:00:06]}  Qf2+ {[%clk 0:00:29]} 61. Kc1 {[%clk 0:00:06]}  Kc3 {[%clk 0:00:30]} 62. Kd1 {[%clk 0:00:06]}  Qd2# {[%clk 0:00:30]} 0-1

[Event "January 9 Early 2024"]
[Site "https://www.chess.com"]
[Date "2024.01.11"]
[Round "11"]
[White "Terry, Renato"]
[Black "Bortnyk, Olexandr"]
[Result "1-0"]
[Board "164"]
[TimeControl "180+1"]
[WhiteFideId "3803457"]
[BlackFideId "14120828"]
[WhiteElo "3020"]
[BlackElo "3109"]
[WhiteTeam "PER"]
[BlackTeam "UKR"]
[WhiteClock "0:00:03"]
[BlackClock "0:00:05"]

1. d4 {[%clk 0:03:00]}  Nf6 {[%clk 0:02:52]} 2. Bg5 {[%clk 0:03:00]}  d5 {[%clk 0:02:47]} 3. e3 {[%clk 0:03:00]}  c5 {[%clk 0:02:47]} 4. c3 {[%clk 0:03:00]}  e6 {[%clk 0:02:43]} 5. Nd2 {[%clk 0:03:00]}  Nc6 {[%clk 0:02:43]} 6. Ngf3 {[%clk 0:03:00]}  cxd4 {[%clk 0:02:43]} 7. exd4 {[%clk 0:03:00]}  Be7 {[%clk 0:02:40]} 8. Bd3 {[%clk 0:03:00]}  O-O {[%clk 0:02:37]} 9. O-O {[%clk 0:03:00]}  Bd7 {[%clk 0:02:38]} 10. h3 {[%clk 0:02:56]}  Rc8 {[%clk 0:02:26]} 11. Bf4 {[%clk 0:02:54]}  Na5 {[%clk 0:02:26]} 12. Ne5 {[%clk 0:02:52]}  b5 {[%clk 0:02:26]} 13. a3 {[%clk 0:02:46]}  Nc4 {[%clk 0:02:26]} 14. Rb1 {[%clk 0:02:46]}  a5 {[%clk 0:02:24]} 15. Qe2 {[%clk 0:02:42]}  b4 {[%clk 0:02:15]} 16. axb4 {[%clk 0:02:31]}  Nxd2 {[%clk 0:02:06]} 17. Bxd2 {[%clk 0:02:29]}  axb4 {[%clk 0:02:06]} 18. g4 {[%clk 0:02:07]}  Be8 {[%clk 0:01:55]} 19. f4 {[%clk 0:01:44]}  Qb6 {[%clk 0:01:50]} 20. f5 {[%clk 0:01:38]}  exf5 {[%clk 0:01:02]} 21. Rxf5 {[%clk 0:01:32]}  Rc7 {[%clk 0:01:01]} 22. Rbf1 {[%clk 0:01:19]}  bxc3 {[%clk 0:00:53]} 23. bxc3 {[%clk 0:01:20]}  Ne4 {[%clk 0:00:49]} 24. Bxe4 {[%clk 0:01:12]}  dxe4 {[%clk 0:00:50]} 25. Qxe4 {[%clk 0:01:12]}  f6 {[%clk 0:00:48]} 26. g5 {[%clk 0:01:02]}  Qe6 {[%clk 0:00:42]} 27. Qg4 {[%clk 0:00:23]}  g6 {[%clk 0:00:18]} 28. Rxf6 {[%clk 0:00:20]}  Qxg4+ {[%clk 0:00:11]} 29. hxg4 {[%clk 0:00:20]}  Bxf6 {[%clk 0:00:06]} 30. gxf6 {[%clk 0:00:21]}  Bf7 {[%clk 0:00:07]} 31. g5 {[%clk 0:00:18]}  Bd5 {[%clk 0:00:05]} 32. Kf2 {[%clk 0:00:17]}  Ra8 {[%clk 0:00:05]} 33. Rb1 {[%clk 0:00:17]}  Rb7 {[%clk 0:00:04]} 34. Rxb7 {[%clk 0:00:15]}  Bxb7 {[%clk 0:00:05]} 35. c4 {[%clk 0:00:15]}  Ra2 {[%clk 0:00:04]} 36. Ke2 {[%clk 0:00:14]}  Ra3 {[%clk 0:00:03]} 37. d5 {[%clk 0:00:14]}  Rg3 {[%clk 0:00:02]} 38. Bf4 {[%clk 0:00:14]}  Rg2+ {[%clk 0:00:02]} 39. Ke3 {[%clk 0:00:14]}  Rc2 {[%clk 0:00:02]} 40. d6 {[%clk 0:00:14]}  Bc8 {[%clk 0:00:03]} 41. Kd4 {[%clk 0:00:11]}  Be6 {[%clk 0:00:02]} 42. c5 {[%clk 0:00:11]}  Ra2 {[%clk 0:00:02]} 43. c6 {[%clk 0:00:11]}  Ra4+ {[%clk 0:00:02]} 44. Ke3 {[%clk 0:00:11]}  Ra3+ {[%clk 0:00:03]} 45. Kf2 {[%clk 0:00:11]}  Ra2+ {[%clk 0:00:04]} 46. Ke1 {[%clk 0:00:09]}  Ra1+ {[%clk 0:00:03]} 47. Ke2 {[%clk 0:00:09]}  Ra4 {[%clk 0:00:04]} 48. d7 {[%clk 0:00:07]}  Rd4 {[%clk 0:00:03]} 49. Ke3 {[%clk 0:00:03]}  Rd6 {[%clk 0:00:03]} 50. Bg3 {[%clk 0:00:02]}  h5 {[%clk 0:00:02]} 51. Nxg6 {[%clk 0:00:01]}  Kf7 {[%clk 0:00:01]} 52. Nf4 {[%clk 0:00:02]}  Rxc6 {[%clk 0:00:01]} 53. g6+ {[%clk 0:00:01]}  Kxf6 {[%clk 0:00:01]} 54. d8=Q+ {[%clk 0:00:02]}  Kf5 {[%clk 0:00:02]} 55. Qf8+ {[%clk 0:00:02]}  Kg4 {[%clk 0:00:03]} 56. Nxe6 {[%clk 0:00:02]}  Rc3+ {[%clk 0:00:04]} 57. Kf2 {[%clk 0:00:02]}  Rxg3 {[%clk 0:00:05]} 58. Qf4+ {[%clk 0:00:02]}  Kh3 {[%clk 0:00:05]} 59. Qxg3# {[%clk 0:00:03]} 1-0